Cogmind - Beta 10.2 @@@ ROGUE MODE // 2021.05.09 @ 18:36:35 Player: Gobbopathe Result: Destroyed by Tracker with Linked Autogun Performance ------------- Evolutions (8) 4000 Regions Visited (25) 5000 Robots Destroyed (200) 1000 Value Destroyed (9779) 9779 Prototype IDs (51) 1020 Alien Tech Used (5) 1000 Bonus (11795) 11795 TOTAL SCORE: 33594 Bonus ------- High Alert Combat Kills 537 Follower Combat Kills 2049 Network Hubs Disabled 400 Aligned with FarCom 300 Met Zhirov 300 Met R17 at Cetus 500 Found Hidden Lab 3000 Used Core Reset Matrix 3000 Met R17 at Research 2000 Pursued by Intercept 500 Friendly Fire -791 Cogmind --------- Core Integrity 0/1450 Matter 245/300 Energy 100/100 System Corruption 31% Temperature Cool (0) Movement Core (50) Location -2/Research Parts ------- > --- POWER (2) -------- (None) > --- PROPULSION (4) --- Centrium Wheel > --- UTILITY (15) ----- Experimental Coolant Injector > --- WEAPON (2) ------- (None) > --- INVENTORY (4) ---- Advanced Heat Sink Energy Well (500) Hacking Drone Bay (1/1) Guided Remote Datajack Peak State ------------ > --- POWER ------------ Light Particle Reactor Light Particle Reactor > --- PROPULSION ------- Improved Heavy Treads Improved Heavy Treads > --- UTILITY ---------- Advanced Heat Sink Experimental Heat Sink Experimental Coolant Injector High-capacity Storage Unit High-capacity Storage Unit Energy Well Experimental Matter Compressor 0b10 Decoder Chip [Scout] Improved Targeting Computer Advanced Targeting Computer Advanced Target Analyzer Advanced Cloaking Device Advanced Force Field Advanced Hacking Suite Deep Network Scanner > --- WEAPON ----------- Nova Cannon Improved Matter Neutralizer > --- INVENTORY -------- Improved Heavy Treads Advanced Heat Sink System Shield Improved System Shield Improved Trap Extractor Hacking Drone Bay Transdimensional Reconstructor Hypervelocity EM Gauss Rifle Gamma Rifle Gamma Rifle Heavy Proton Cannon Warp Cannon Mass Driver Hardcell Cannon Linear Accelerator Scatter Rocket Array Guided Remote Datajack Stasis Projector Lance [Rating: 162] Favorites ----------- Power Reinforced Deuterium Engine Engine Reinforced Deuterium Engine Power Core Fission Core Reactor Heavy Antimatter Reactor Propulsion Centrium Heavy Treads Treads Centrium Heavy Treads Wheel Compact Wheel Flight Unit Cooled Nuclear Pulse Thruster Utility High-capacity Storage Unit Device Advanced Heat Sink Storage High-capacity Storage Unit Processor 0b10 Decoder Chip [Scout] Hackware Hacking Suite Protection Improved Utility Shielding Weapon Compact Ion Cannon Energy Gun Improved Lightning Gun Energy Cannon Compact Ion Cannon Ballistic Gun Assault Rifle Ballistic Cannon Gauss Cannon Launcher Shock Bomb Launcher Special Weapon Stasis Projector Slashing Weapon Ripper Piercing Weapon Lance Special Melee Weapon Datajack Build | -11 -10 -10 -10 -9 -8 -7 -7 -7 -7 -6 -6 -6 -6 -6 -6 -5 -5 -5 -5 -4 -4 -3 -3 -3 -2 ------- Run | Scr Mat Min Exi Min Mat Fac Low Low Zio Pro Fac Ext Cet Arc Hub Fac Upp Upp Zhi Pro Fac Res Arm Lab Res Slots Evolved 16 | . . . . . 4 2 . . . . 2 . . . . 2 . . . . 2 2 . . 2 Power 1 | . . . . . . . . . . . . . . . . 1 . . . . . . . . . Propulsion 2 | . . . . . . . . . . . . . . . . . . . . . 2 . . . . Utility 13 | . . . . . 4 2 . . . . 2 . . . . 1 . . . . . 2 . . 2 Weapon . | . . . . . . . . . . . . . . . . . . . . . . . . . . Parts Attached 295 | 6 4 1 3 5 5 3 7 3 2 12 13 3 9 6 27 9 11 8 10 12 16 24 8 9 79 Power 29 | 1 1 . . 1 . 1 . . . 1 . 1 . . 3 2 1 1 2 3 1 . . . 10 Engine 11 | 1 1 . . 1 . 1 . . . 1 . 1 . . 1 . 1 . 1 1 . . . . 1 Core 4 | . . . . . . . . . . . . . . . 2 1 . . . 1 . . . . . Reactor 14 | . . . . . . . . . . . . . . . . 1 . 1 1 1 1 . . . 9 Propulsion 32 | 2 . 1 . . . . . 2 . 3 . 1 1 . 3 1 . . 3 . 3 4 . . 8 Treads 25 | . . . . . . . . . . 3 . 1 1 . 3 1 . . 2 . 3 4 . . 7 Leg . | . . . . . . . . . . . . . . . . . . . . . . . . . . Wheel 6 | 2 . 1 . . . . . 2 . . . . . . . . . . . . . . . . 1 Hover . | . . . . . . . . . . . . . . . . . . . . . . . . . . Flight 1 | . . . . . . . . . . . . . . . . . . . 1 . . . . . . Utility 129 | 1 3 . 2 2 5 2 . . 2 7 4 1 6 6 10 5 6 4 3 . 4 13 1 6 36 Device 67 | . . . . 1 3 . . . 1 4 1 1 . 3 6 3 4 3 1 . 4 6 . 3 23 Storage 26 | 1 3 . 2 1 1 . . . . 2 . . 3 . . 1 . . 1 . . 3 . 1 7 Processor 11 | . . . . . 1 . . . 1 . . . . . 1 . 2 1 . . . 2 . . 3 Hackware 12 | . . . . . . 1 . . . . . . 3 . 1 1 . . . . . 2 . 1 3 Protection 13 | . . . . . . 1 . . . 1 3 . . 3 2 . . . 1 . . . 1 1 . Artifact . | . . . . . . . . . . . . . . . . . . . . . . . . . . Weapon 105 | 2 . . 1 2 . . 7 1 . 1 9 . 2 . 11 1 4 3 2 9 8 7 7 3 25 Energy Gun 19 | 1 . . . . . . . 1 . . 1 . 1 . 1 . . . 2 3 1 1 1 . 6 Energy Cannon 32 | . . . . 1 . . 3 . . . 2 . . . 4 1 2 . . 3 3 . 4 1 8 Ballistic Gun 9 | 1 . . 1 . . . 1 . . . . . 1 . 3 . . 1 . . 1 . . . . Ballistic Cannon 15 | . . . . . . . . . . . 3 . . . . . 1 1 . . . 4 . . 6 Launcher 13 | . . . . . . . 3 . . 1 . . . . 3 . 1 1 . 3 . . . . 1 Special Weapon 3 | . . . . . . . . . . . . . . . . . . . . . . . . 1 2 Impact Weapon . | . . . . . . . . . . . . . . . . . . . . . . . . . . Slashing Weapon 6 | . . . . . . . . . . . 2 . . . . . . . . . 2 2 . . . Piercing Weapon 6 | . . . . . . . . . . . . . . . . . . . . . 1 . 2 1 2 Special Melee Weapon 2 | . . . . 1 . . . . . . 1 . . . . . . . . . . . . . . Unidentified Prototypes 31 | . . . . . . . . . . . 2 . 3 1 3 . . . 4 . . 3 4 4 7 Parts Lost 102 | . . . . . . . 1 1 . 4 . . . . 21 . 6 5 . 7 6 4 1 2 44 Power 13 | . . . . . . . . . . . . . . . 2 . . 1 . 3 . 1 . 1 5 Propulsion 16 | . . . . . . . . 1 . 2 . . . . 3 . . . . . 1 2 . . 7 Utility 46 | . . . . . . . . . . . . . . . 11 . 5 3 . . 4 1 1 1 20 Weapon 27 | . . . . . . . 1 . . 2 . . . . 5 . 1 1 . 4 1 . . . 12 Highest Loss Streak 13 | . . . . . . . 1 1 . 4 . . . . 6 . 4 2 . 7 3 2 1 2 13 Average Slot Usage (%) 88 | . 97 100 99 99 98 99 99 98 100 84 98 75 65 80 91 76 90 83 88 93 92 91 94 89 74 Engine 4 | . 14 14 14 14 9 7 7 7 7 7 6 6 6 6 5 . 1 5 4 3 . . . . . Core 1 | . . . . . . . . . . . . . . . . 7 8 1 . 1 1 . . . . Reactor 2 | . . . . . . . . . . . . . . . . 2 . 3 6 5 8 7 4 . 3 Treads 7 | . . . . . . . . . . 10 13 13 11 6 5 4 5 5 5 5 14 12 19 19 9 Wheel 3 | . 28 28 28 28 18 15 15 13 15 2 . . . . . . . . . . . . . . . Device 18 | . . . . . 20 15 15 15 15 18 20 9 6 14 19 23 34 25 24 23 21 23 19 15 16 Storage 17 | . 25 28 28 27 27 23 23 23 23 20 20 20 15 20 19 11 14 11 12 17 15 13 14 14 11 Processor 7 | . . . . . 4 7 7 7 7 7 6 6 6 6 6 . 1 10 11 11 10 12 14 14 11 Hackware 5 | . . . . . . 7 7 7 7 1 . . 4 . 5 11 7 5 5 5 5 10 10 10 9 Protection 4 | . . . . . . 6 7 7 7 5 19 5 . 12 12 . . . 2 5 3 . 2 4 1 Energy Gun 2 | . 14 14 14 8 . . . 2 7 1 1 6 6 6 2 . . . 1 8 2 1 . . . Energy Cannon 3 | . . . . 1 9 7 1 . . . 3 . . . 5 10 9 5 5 1 7 1 6 6 4 Ballistic Gun 2 | . 14 14 13 14 9 7 10 11 7 1 . . . 6 4 . . 1 3 . . . . . . Ballistic Cannon 1 | . . . . . . . . . . . 4 6 5 . . . 1 3 . . . 5 1 . 1 Naked Turns 1 | . . . . . . . . . . . . . . . . . . . . . . . . . 1 Heaviest Build 187 | 13 57 57 73 78 98 104 104 102 102 133 125 187 187 186 123 109 112 120 126 129 130 136 128 128 144 Greatest Support 150 | 32 32 32 32 32 32 32 32 32 26 43 43 43 80 80 80 80 80 80 80 80 140 140 140 140 150 Greatest Overweight (x) 42 | . 1 1 2 2 3 3 3 6 3 42 2 4 4 2 1 1 1 1 5 1 2 2 . 1 2 Average Overweight (x) 1 | . . 1 1 1 3 3 3 3 3 2 2 3 3 1 . 1 1 1 1 1 . 1 . . . Largest Inventory Capacity 26 | 6 18 18 20 20 26 26 26 26 26 26 26 26 26 26 26 20 20 20 20 20 20 20 20 20 20 Average Capacity 21 | 5 15 18 18 19 26 26 26 26 26 23 26 26 20 26 25 20 20 20 20 20 20 20 20 20 16 Most Carried 26 | 5 8 13 18 20 26 26 26 26 26 26 26 26 26 26 26 20 20 20 20 20 20 20 20 20 20 Average Carried 20 | 2 5 11 15 17 22 24 25 25 25 22 25 25 19 23 23 14 19 19 19 19 19 18 19 19 14 Final Capacity 26 | 6 18 18 20 20 26 26 26 26 26 26 26 26 26 26 20 20 20 20 20 20 20 20 20 20 4 Final Carried 26 | 5 8 13 18 20 26 26 26 26 26 26 26 26 26 24 18 20 20 20 20 19 17 20 20 20 4 Class Distribution -------------------- 29% | Hauler-Mutant 23% | Scavenger-Mutant 11% | Derelict-Mutant 9% | Scavenger-Skirmisher 8% | Hacker-Mutant 5% | Mutant 5% | Hacker-Skirmisher 3% | Trapper-Skirmisher Dominant Class ---------------- Mutant | -10/Materials Mutant | -10/Mines Mutant | -10/Exiles Hauler-Mutant | -9/Mines Trapper-Skirmisher | -8/Materials Hauler-Skirmisher | -7/Factory Hauler-Mutant | -7/Lower Caves Hauler-Mutant | -7/Lower Caves Hauler-Mutant | -7/Zion Hauler-Mutant | -6/Proximity Caves Scavenger-Skirmisher | -6/Factory Hauler-Mutant | -6/Extension Hauler-Mutant | -6/Cetus Scavenger-Skirmisher | -6/Archives Scavenger-Skirmisher | -6/Hub_04(d) Scavenger-Mutant | -5/Factory Scavenger-Mutant | -5/Upper Caves Derelict-Mutant | -5/Upper Caves Derelict-Mutant | -5/Zhirov Derelict-Mutant | -4/Proximity Caves Hauler-Mutant | -4/Factory Scavenger-Mutant | -3/Research Scavenger-Mutant | -3/Armory Scavenger-Mutant | -3/Lab Hacker-Skirmisher | -2/Research Resources | -11 -10 -10 -10 -9 -8 -7 -7 -7 -7 -6 -6 -6 -6 -6 -6 -5 -5 -5 -5 -4 -4 -3 -3 -3 -2 ----------- Run | Scr Mat Min Exi Min Mat Fac Low Low Zio Pro Fac Ext Cet Arc Hub Fac Upp Upp Zhi Pro Fac Res Arm Lab Res Matter Collected 5475 | 275 54 50 . 16 180 39 138 77 20 155 146 194 132 88 824 90 318 263 115 159 135 402 216 4 1385 Remotely 261 | . . . . . . . . . . . . . . . . . . . . . . . . . 261 Salvage Created 9235 | 88 190 169 . . 198 61 208 180 . 188 12 465 111 239 1549 90 859 341 233 428 571 371 108 4 2572 Parts 402 | 6 10 8 . . 10 3 5 8 . 10 4 10 6 13 66 4 36 19 3 29 26 12 5 . 109 Haulers Intercepted 6 | . 1 . . . . . . . . . . . . . 1 . . . . . 1 1 . . 2 Recyclers Shooed 4 | . . 1 . . . . . . . . 1 1 . . . . . . . . 1 . . . . Parts Field Recycled . | . . . . . . . . . . . . . . . . . . . . . . . . . . Retrieved Matter . | . . . . . . . . . . . . . . . . . . . . . . . . . . Parts Self-Destructed 81 | . . . . . . . 1 9 . 18 . . . . . . 21 16 . 16 . . . . . Prevented 32 | . . . . . . . . 2 . 10 . . . . . . 9 2 . 9 . . . . . Kills | -11 -10 -10 -10 -9 -8 -7 -7 -7 -7 -6 -6 -6 -6 -6 -6 -5 -5 -5 -5 -4 -4 -3 -3 -3 -2 ------- Run | Scr Mat Min Exi Min Mat Fac Low Low Zio Pro Fac Ext Cet Arc Hub Fac Upp Upp Zhi Pro Fac Res Arm Lab Res Combat Hostiles Destroyed 148 | . 2 3 . . 3 1 4 5 . 6 . 2 2 3 22 1 17 10 . 10 7 6 6 1 37 Melee 2 | . . . . . . . . . . . . . . . . . . . . . 1 . . 1 . Guns 32 | . 2 1 . . . . 1 5 . 3 . . . 2 14 . . . . 2 2 . . . . Cannons 84 | . . . . . 3 1 1 . . . . 2 . . 5 1 16 7 . 1 3 6 6 . 32 AOE 24 | . . 2 . . . . 2 . . 3 . . 2 . 2 . 1 3 . 7 . . . . 2 Classes Destroyed 19 | 2 4 2 . . . 1 2 . . . . 1 . . 3 . 2 . . 1 1 . . . . Worker 10 | . . 1 . . . . . . . . . . . . 5 . . . . . 1 . . . 3 Builder 6 | . 1 1 . . 1 . . . . . . . . . 1 . . . . . . . . . 2 Tunneler 2 | 1 . . . . . . . . . . 1 . . . . . . . . . . . . . . Hauler 6 | . 1 . . . . . . . . . . . . . 1 . . . . . 1 1 . . 2 Recycler 7 | 1 . 1 . . . . . . . . . 3 . . 1 . . . . . . . . . 1 Minesweeper 2 | . . . . . . . . . . . . . . . . . 1 . . 1 . . . . . Operator 2 | . . . . . . . . . . . . . . . . . . . . . 1 1 . . . Watcher 16 | . 1 . . . 1 . . . . . . 1 . . 4 . . . . . 2 1 . . 6 Swarmer 55 | . . 3 . . . . 3 4 . 5 . . . . 2 . 14 8 . 8 . . 5 . 3 Grunt 22 | . 2 . . . 3 . . . . . . . . . 7 . 1 . . . 1 3 . . 5 Brawler 2 | . . . . . . . . . . . . 2 . . . . . . . . . . . . . Protector 2 | . . . . . . . . . . . . . . . 2 . . . . . . . . . . Sentry 20 | . . . . . . 1 . 1 . 1 . . . 3 5 1 . . . 1 2 2 1 . 2 Hunter 13 | . . . . . . . . . . . . . . . . . 1 . . 1 2 1 . . 8 Programmer 18 | . . . . . . . . . . . . . . . 3 . . 2 . . 2 . . . 11 Behemoth 1 | . . . . . . . . . . . . . . . . . 1 . . . . . . . . Cetus Guard 2 | . . . . . . . . . . . . . 2 . . . . . . . . . . . . Lightning 3 | . . . . . . . . . . . . . . . 3 . . . . . . . . . . Tracker 4 | . . . . . . . . . . . . . . . . . . . . . . . . . 4 Combat Programmer 4 | . . . . . . . . . . . . . . . . . . . . . . . . . 4 Decomposer 2 | . . . . . . . . 1 . . . . . . . . 1 . . . . . . . . Packrat 2 | . . . . . . . 1 . . . . . . . . . . 1 . . . . . . . Samaritan 1 | . . . . . . . 1 . . . . . . . . . . . . . . . . . . Tinkerer 1 | . . . . . . . . . . . . . . . . . . . . 1 . . . . . Mutant 2 | . . . . . . . 1 . . . . . . . . . 1 . . . . . . . . Best Kill Streak 8 | 2 3 3 . . 2 1 3 4 . 3 1 3 2 2 6 1 5 4 . 4 3 2 5 1 8 Combat Bots Only 5 | . 2 3 . . 2 1 3 4 . 3 . 2 2 2 3 1 5 4 . 4 2 2 5 1 5 Max Kills in Single Turn 2 | 1 2 2 . . 2 1 1 2 . 1 1 1 2 1 2 1 1 2 . 2 1 1 1 1 2 Gunslinging . | . . . . . . . . . . . . . . . . . . . . . . . . . . Exploded 2 | . . 2 . . . . 1 . . 1 . . 2 . 1 . 1 2 . 2 . . . . 2 Melee 1 | . . . . . . . . . . . . . . . . . . . . . 1 . . 1 . Uniques/NPCs Destroyed 1 | . . . . . . . . . . . . . . . . . . . . . . . . 1 . A5 (-3/Lab) Combat | -11 -10 -10 -10 -9 -8 -7 -7 -7 -7 -6 -6 -6 -6 -6 -6 -5 -5 -5 -5 -4 -4 -3 -3 -3 -2 -------- Run | Scr Mat Min Exi Min Mat Fac Low Low Zio Pro Fac Ext Cet Arc Hub Fac Upp Upp Zhi Pro Fac Res Arm Lab Res Damage Taken 22319 | 37 125 71 . . 206 96 180 315 . 644 73 28 64 261 5584 50 844 622 . 1225 1186 454 684 571 8999 Core 3315 | 37 12 10 . . 63 30 15 77 . 151 . . 7 23 667 . 99 60 . 170 107 162 100 119 1406 Absorbed by Shields 854 | . . . . . . . . . . . . . . . . 19 293 . . . . . . 133 409 Core Remaining (%) 71 | 85 . . . 76 88 . . . . 61 . . . . 18 . . . . 67 90 . . 88 . Volleys Fired 609 | 5 8 10 . 6 16 3 11 8 . 9 6 24 7 7 113 4 48 26 4 36 34 29 13 5 177 Largest 2 | 2 2 2 . 2 2 2 2 2 . 2 2 2 2 2 2 2 2 2 2 2 2 2 2 2 2 Hottest 226 | 60 60 60 . 60 100 100 100 94 . 94 117 108 108 115 180 159 159 151 165 165 195 165 226 226 226 Shots Fired 1090 | 10 16 20 . 12 32 6 18 16 . 14 11 47 14 12 218 8 94 50 8 64 68 58 26 10 258 Gun 393 | 10 16 20 . 12 16 3 9 16 . 10 2 23 7 12 135 . . 4 4 43 19 6 . . 26 Cannon 666 | . . . . . 16 3 5 . . . 9 24 7 . 78 8 93 44 4 13 49 52 26 10 225 Launcher 27 | . . . . . . . 4 . . 4 . . . . 5 . 1 2 . 8 . . . . 3 Special 4 | . . . . . . . . . . . . . . . . . . . . . . . . . 4 Kinetic 334 | 5 8 10 . 6 16 3 9 13 . 5 6 24 7 7 92 . 4 24 . . . 46 3 . 46 Thermal 573 | . . . . . 16 3 5 3 . 5 . . . 5 115 4 47 24 8 52 68 12 23 10 173 Explosive 12 | . . . . . . . 4 . . . . . . . 5 . . . . . . . . . 3 Electromagnetic 167 | 5 8 10 . 6 . . . . . 4 5 23 7 . 6 4 43 2 . 12 . . . . 32 Robot Hit Streak 47 | 4 4 7 . 6 12 3 8 6 . 4 2 14 2 10 17 8 12 13 9 17 11 22 28 4 47 Robot Miss Streak 21 | 2 2 3 . 1 2 1 1 4 . 3 5 2 3 1 21 . 3 4 . 3 5 2 1 2 10 Penetration Max 1 | . . . . . . . . . . . . 1 . . 1 . . . . . . . . . . Secondary Targets 6 | . . 1 . . . . . 2 . . . . . 1 1 . . . . 1 . . . . . Max Gunslinging Chain 1 | . . 1 . . . . . 1 . . . . . 1 1 . . . . 1 . . . . . Shots Hit Robots 729 | 6 9 13 . 9 23 4 14 9 . 7 4 33 6 11 143 7 56 26 7 42 48 46 18 13 175 Core Hits 397 | 3 8 7 . 3 8 3 12 9 . 11 2 11 6 3 88 3 29 18 6 20 22 15 7 7 96 Critical Hits 54 | . . . . . . . . . . . 1 1 . 3 6 . 1 2 . . 2 5 4 1 28 Critical Kills 18 | . . . . . . . . . . . 1 . . 2 1 . 1 2 . . . 1 1 . 9 Critical Parts Destroyed 26 | . . . . . . . . . . . . 1 . . 5 . . . . . 2 3 3 . 12 Melee Attacks 40 | . . . . . . . . . . . 2 . . . . . . . . . 7 3 4 14 10 Impact . | . . . . . . . . . . . . . . . . . . . . . . . . . . Slashing 10 | . . . . . . . . . . . 2 . . . . . . . . . 5 3 . . . Piercing 30 | . . . . . . . . . . . . . . . . . . . . . 2 . 4 14 10 Sneak Attacks 1 | . . . . . . . . . . . . . . . . . . . . . . . . . 1 Combat Hostiles . | . . . . . . . . . . . . . . . . . . . . . . . . . . Follow-up Attacks . | . . . . . . . . . . . . . . . . . . . . . . . . . . Damage Inflicted 28423 | 90 276 207 . 147 463 92 515 191 . 311 75 901 428 340 5484 180 1723 752 250 1407 1924 1774 763 587 9543 Guns 6086 | 67 121 159 . 147 132 14 106 191 . 113 22 369 83 340 2316 . . . 110 811 415 107 . . 463 Cannons 17903 | . . . . . 331 78 125 . . . 53 479 130 . 1532 180 1521 579 140 291 1474 1667 763 209 8351 Explosions 3759 | 23 155 48 . . . . 284 . . 198 . 53 215 . 1636 . 202 173 . 305 . . . . 467 Melee 675 | . . . . . . . . . . . . . . . . . . . . . 35 . . 378 262 Ramming . | . . . . . . . . . . . . . . . . . . . . . . . . . . Kinetic 6284 | 13 48 59 . 70 132 14 106 151 . 76 53 479 130 193 1410 . 49 167 . . . 1569 138 . 1427 Thermal 16181 | 23 155 48 . . 331 78 125 40 . 37 . 53 215 147 2311 83 865 461 250 1081 1889 205 625 209 6950 Explosive 1808 | . . . . . . . 284 . . . . . . . 1248 . . . . . . . . . 276 Electromagnetic 3475 | 54 73 100 . 77 . . . . . 198 22 369 83 . 515 97 809 124 . 326 . . . . 628 Impact . | . . . . . . . . . . . . . . . . . . . . . . . . . . Slashing . | . . . . . . . . . . . . . . . . . . . . . . . . . . Piercing 675 | . . . . . . . . . . . . . . . . . . . . . 35 . . 378 262 Highest Corruption 31 | . . . . . . . . . . . . . 1 1 30 . . 3 3 3 2 . . 5 31 Average Corruption 8 | . . . . . . . . . . . . . 1 1 8 . . 2 3 3 1 . . 4 19 Corruption Purged . | . . . . . . . . . . . . . . . . . . . . . . . . . . Effects 254 | . . . . . . . . . . . . . 1 . 77 . . 10 7 14 3 . . 7 135 Message Errors 34 | . . . . . . . . . . . . . . . 8 . . 4 1 1 1 . . 3 16 Matter Fused 28 | . . . . . . . . . . . . . . . 7 . . 4 1 2 . . . . 14 Heat Flow Errors 28 | . . . . . . . . . . . . . . . 7 . . 1 3 2 . . . 2 13 Energy Discharges 12 | . . . . . . . . . . . . . . . 3 . . . . 5 1 . . 1 2 Parts Rejected 1 | . . . . . . . . . . . . . . . 1 . . . . . . . . . . Data Loss (minor) 16 | . . . . . . . . . . . . . 1 . 4 . . . 2 1 . . . 1 7 Data Loss (major) 3 | . . . . . . . . . . . . . . . 1 . . . . . . . . . 2 Misfires 6 | . . . . . . . . . . . . . . . 4 . . . . . . . . . 2 Alerts 3 | . . . . . . . . . . . . . . . . . . . . . . . . . 3 Misdirections 24 | . . . . . . . . . . . . . . . 7 . . . . . . . . . 17 Targeting Errors 83 | . . . . . . . . . . . . . . . 28 . . 1 . 3 1 . . . 50 Weapon Failures 16 | . . . . . . . . . . . . . . . 7 . . . . . . . . . 9 Overload Shots . | . . . . . . . . . . . . . . . . . . . . . . . . . . Overflow Damage 700 | . . . . . 8 . 11 . . . . 29 . . 120 . 51 2 21 . 72 16 42 . 328 Projectiles 533 | . . . . . 8 . . . . . . 6 . . 54 . 29 . 21 . 72 16 42 . 285 Explosions 167 | . . . . . . . 11 . . . . 23 . . 66 . 22 2 . . . . . . 43 Melee . | . . . . . . . . . . . . . . . . . . . . . . . . . . Knockbacks 28 | . . . . . . . . . . . . 2 3 . . . . 2 . . . 4 . . 17 Impact . | . . . . . . . . . . . . . . . . . . . . . . . . . . Kinetic 26 | . . . . . . . . . . . . 2 2 . . . . 2 . . . 4 . . 16 Secondary 2 | . . . . . . . . . . . . . 1 . . . . . . . . . . . 1 Self-Inflicted Damage 652 | 37 56 . . . . . 47 . . . . . . . 239 . 37 . . . . . . . 236 Shots 14 | 1 1 . . . . . 1 . . . . . . . 4 . 1 . . . . . . . 6 Rammed . | . . . . . . . . . . . . . . . . . . . . . . . . . . Targets Rammed . | . . . . . . . . . . . . . . . . . . . . . . . . . . Kicked . | . . . . . . . . . . . . . . . . . . . . . . . . . . Crushed . | . . . . . . . . . . . . . . . . . . . . . . . . . . Highest Temperature 458 | 12 51 . . . . . . . . 27 . 27 54 127 458 . 3 203 81 86 4 . . 75 179 Average Temperature 56 | 12 32 . . . . . . . . 18 . 14 17 61 134 . 3 134 42 50 4 . . 59 49 Received Heat Transfer 1346 | . 39 . . . 117 30 60 42 . 144 . . 8 45 564 6 60 . . 27 69 9 27 . 99 Effects 3 | . . . . . . . . . . . . . . . 3 . . . . . . . . . . Energy Bleed 1 | . . . . . . . . . . . . . . . 1 . . . . . . . . . . Damage (major) 2 | . . . . . . . . . . . . . . . 2 . . . . . . . . . . Siege Activations . | . . . . . . . . . . . . . . . . . . . . . . . . . . Robots Corrupted 5 | . . . . . . . . . . . . 1 . . 2 . . . . . . . . . 2 Combat Hostiles 3 | . . . . . . . . . . . . . . . 1 . . . . . . . . . 2 Parts Fried 21 | . . . . . . . . . . . . 1 1 . 7 2 2 . . . . . . . 8 Impact Corruptions . | . . . . . . . . . . . . . . . . . . . . . . . . . . Robots Melted 3 | . . . . . . . . . . . . . . 1 . . . . . . 1 . . . 1 Combat Hostiles 3 | . . . . . . . . . . . . . . 1 . . . . . . 1 . . . 1 Parts Melted 31 | . . 2 . . 3 . . . . . . . . 2 5 . 3 1 . 2 5 . . . 8 Heat Transferred 16924 | 50 200 100 . . 650 150 250 74 . 74 . 50 50 185 2794 111 1112 618 184 1458 2206 311 592 129 5576 Parts Sabotaged . | . . . . . . . . . . . . . . . . . . . . . . . . . . Parts Stolen . | . . . . . . . . . . . . . . . . . . . . . . . . . . Parts Stripped . | . . . . . . . . . . . . . . . . . . . . . . . . . . Power Chain Reactions 12 | 1 1 1 . . . . . . . . . 1 1 . . . 1 1 . 3 . . . . 2 Missiles Intercepted . | . . . . . . . . . . . . . . . . . . . . . . . . . . Alert | -11 -10 -10 -10 -9 -8 -7 -7 -7 -7 -6 -6 -6 -6 -6 -6 -5 -5 -5 -5 -4 -4 -3 -3 -3 -2 ------- Run | Scr Mat Min Exi Min Mat Fac Low Low Zio Pro Fac Ext Cet Arc Hub Fac Upp Upp Zhi Pro Fac Res Arm Lab Res Peak Influence 668 | 10 164 163 . . 129 45 . . . . 151 582 661 361 520 589 . . . . 133 129 202 . 668 Initial 259 | . 6 63 . . . . . . . . 89 . 241 259 126 178 . . . . 25 62 . . . Average 199 | 3 65 153 . . 63 27 . . . . 69 287 536 345 289 270 . . . . 62 64 114 . 251 Maximum Alert Level 2 | . . . . . . . . . . . . 2 2 1 2 2 . . . . . . 1 . 2 Low Security (%) 61 | 100 100 100 . 100 100 100 . . . . 100 36 . . 20 58 . . . . 100 100 94 . 42 Level 1 23 | . . . . . . . . . . . . 22 30 100 65 34 . . . . . . 5 . 30 Level 2 15 | . . . . . . . . . . . . 40 69 . 14 6 . . . . . . . . 26 Level 3 . | . . . . . . . . . . . . . . . . . . . . . . . . . . Level 4 . | . . . . . . . . . . . . . . . . . . . . . . . . . . Level 5 . | . . . . . . . . . . . . . . . . . . . . . . . . . . High Security . | . . . . . . . . . . . . . . . . . . . . . . . . . . Max Security . | . . . . . . . . . . . . . . . . . . . . . . . . . . Squads Dispatched 36 | . 1 . . . 1 . . . . 1 . . . . 4 . . . . . 3 4 1 . 21 Investigation 3 | . . . . . . . . . . . . . . . . . . . . . . 2 . . 1 Extermination 9 | . . . . . . . . . . . . . . . 3 . . . . . 1 . 1 . 4 Reinforcement 9 | . 1 . . . 1 . . . . . . . . . . . . . . . 2 2 . . 3 Assault 2 | . . . . . . . . . . 1 . . . . . . . . . . . . . . 1 Garrison 1 | . . . . . . . . . . . . . . . 1 . . . . . . . . . . Intercept 12 | . . . . . . . . . . . . . . . . . . . . . . . . . 12 Construction Impeded 2 | . . . . . . . . . . . . . . . . . . . . . 1 . . . 1 Haulers Reinforced 1 | . . . . . . . . . . . . . . . . . . . . . . . . . 1 Stealth | -11 -10 -10 -10 -9 -8 -7 -7 -7 -7 -6 -6 -6 -6 -6 -6 -5 -5 -5 -5 -4 -4 -3 -3 -3 -2 --------- Run | Scr Mat Min Exi Min Mat Fac Low Low Zio Pro Fac Ext Cet Arc Hub Fac Upp Upp Zhi Pro Fac Res Arm Lab Res Distress Signals 16 | . 1 . . . . . . . . . . 1 2 . 3 . . . . . 1 5 . . 3 Communications Jammed . | . . . . . . . . . . . . . . . . . . . . . . . . . . Distress Signals . | . . . . . . . . . . . . . . . . . . . . . . . . . . Times Spotted 285 | . 7 3 . . 7 2 4 5 . 19 4 18 20 3 39 1 18 10 . 11 13 13 7 1 80 Peak Tracking Total 14 | . 2 3 . . 3 1 3 4 . 8 2 4 5 2 5 1 5 4 . 4 2 4 5 1 14 Tactical Retreats 9 | . . . . . . . . . . 1 . . . . 1 . 1 . . . . . . . 6 Traps | -11 -10 -10 -10 -9 -8 -7 -7 -7 -7 -6 -6 -6 -6 -6 -6 -5 -5 -5 -5 -4 -4 -3 -3 -3 -2 ------- Run | Scr Mat Min Exi Min Mat Fac Low Low Zio Pro Fac Ext Cet Arc Hub Fac Upp Upp Zhi Pro Fac Res Arm Lab Res Traps Triggered 3 | . . . . . . . . . . . . . . . . . . . . . . . . . 3 Indirectly . | . . . . . . . . . . . . . . . . . . . . . . . . . . Trap Hack Attempts 22 | . . . . 20 . . . . . . 2 . . . . . . . . . . . . . . Triggered . | . . . . . . . . . . . . . . . . . . . . . . . . . . Disarmed . | . . . . . . . . . . . . . . . . . . . . . . . . . . Reprogrammed 3 | . . . . 3 . . . . . . . . . . . . . . . . . . . . . Reused 1 | . . . . . . 1 . . . . . . . . . . . . . . . . . . . Traps Extracted 3 | . . . . 3 . . . . . . . . . . . . . . . . . . . . . Installed 1 | . . . . . . 1 . . . . . . . . . . . . . . . . . . . Triggered 7 | . . . . . . 1 . 3 . . . 1 . . . . 1 . . . . . . . 1 Machines | -11 -10 -10 -10 -9 -8 -7 -7 -7 -7 -6 -6 -6 -6 -6 -6 -5 -5 -5 -5 -4 -4 -3 -3 -3 -2 ---------- Run | Scr Mat Min Exi Min Mat Fac Low Low Zio Pro Fac Ext Cet Arc Hub Fac Upp Upp Zhi Pro Fac Res Arm Lab Res Machines Disabled 33 | . 1 . . . . . 1 . . . . 4 . 3 16 . . . . . . 1 3 3 1 Max in Single Turn 3 | . 1 . . . . . 1 . . . . 1 . 1 3 . . . . . . 1 1 1 1 Garrison Access 3 | . . . . . 1 . . . . . . . . . 1 1 . . . . . . . . . Network Hub 2 | . . . . . . . . . . . . . . . 2 . . . . . . . . . . Machines Sabotaged . | . . . . . . . . . . . . . . . . . . . . . . . . . . Garrisons Compromised . | . . . . . . . . . . . . . . . . . . . . . . . . . . Overloaded Fab Kills . | . . . . . . . . . . . . . . . . . . . . . . . . . . Fab Network Shutdowns 1 | . . . . . . . . . . . . . . . . 1 . . . . . . . . . Hacking | -11 -10 -10 -10 -9 -8 -7 -7 -7 -7 -6 -6 -6 -6 -6 -6 -5 -5 -5 -5 -4 -4 -3 -3 -3 -2 --------- Run | Scr Mat Min Exi Min Mat Fac Low Low Zio Pro Fac Ext Cet Arc Hub Fac Upp Upp Zhi Pro Fac Res Arm Lab Res Machines Accessed 72 | . 5 . 4 1 2 . . 2 . . 8 2 3 1 13 3 . 1 8 . 6 2 3 2 6 Terminals 39 | . 4 . . . . . . . . . 5 2 3 . 12 . . . . . 6 2 2 . 3 Fabricators 1 | . . . . . . . . . . . . . . . . 1 . . . . . . . . . Repair Stations 4 | . . . . . . . . . . . 2 . . . . 1 . . . . . . . . 1 Recycling Units 3 | . 1 . . . . . . . . . . . . . . . . . . . . . 1 . 1 Scanalyzers 3 | . . . . . 1 . . . . . 1 . . . . . . . . . . . . . 1 Garrison Access 3 | . . . . . 1 . . . . . . . . . 1 1 . . . . . . . . . Total Hacks 360 | . 15 . 49 1 10 . . 12 . . 23 2 7 25 44 9 . 1 47 . 41 5 18 19 32 Successful 260 | . 12 . 49 1 9 . . 12 . . 9 1 4 25 19 8 . 1 47 . 13 3 11 19 17 Failed 100 | . 3 . . . 1 . . . . . 14 1 3 . 25 1 . . . . 28 2 7 . 15 Catastrophic 15 | . . . . . . . . . . . . . . . 4 . . . . . 5 2 1 . 3 Database Lockouts . | . . . . . . . . . . . . . . . . . . . . . . . . . . Manual 76 | . 7 . 1 . . . . . . . 6 . 2 . 25 . . . . . 13 3 9 1 9 Terminals 160 | . 13 . . . . . . . . . 15 2 7 . 43 . . . . . 41 5 16 . 18 Fabricators 1 | . . . . . . . . . . . . . . . . 1 . . . . . . . . . Repair Stations 21 | . . . . . . . . . . . 6 . . . . 7 . . . . . . . . 8 Recycling Units 5 | . 2 . . . . . . . . . . . . . . . . . . . . . 2 . 1 Scanalyzers 15 | . . . . . 8 . . . . . 2 . . . . . . . . . . . . . 5 Garrison Access 4 | . . . . . 2 . . . . . . . . . 1 1 . . . . . . . . . Terminal Hacks 203 | . 5 . 49 1 . . . 12 . . 3 1 4 25 12 . . 1 47 . 10 2 8 19 4 Record 144 | . . . 49 . . . . 11 . . . . 3 25 . . . . 35 . . . 2 19 . Part Schematic 4 | . . . . . . . . . . . . . . . . . . . 4 . . . . . . Robot Analysis 5 | . . . . . . . . . . . . . . . . . . . 4 . . . . . 1 Prototype ID Bank 9 | . . . . . . . . . . . . . . . 2 . . . 4 . 2 . 1 . . Open Door 5 | . . . . 1 . . . 1 . . . 1 1 . . . . 1 . . . . . . . Level Access Points 1 | . . . . . . . . . . . . . . . . . . . . . 1 . . . . Emergency Access Points 2 | . . . . . . . . . . . . . . . 2 . . . . . . . . . . Terminal Index 5 | . 1 . . . . . . . . . 1 . . . 1 . . . . . 1 . . . 1 Alert Level 6 | . 1 . . . . . . . . . 1 . . . 2 . . . . . . . 2 . . Unreport Threat 5 | . . . . . . . . . . . 1 . . . 2 . . . . . 1 . 1 . . Locate Traps 4 | . 1 . . . . . . . . . . . . . . . . . . . 1 1 . . 1 Patrol Status 1 | . . . . . . . . . . . . . . . 1 . . . . . . . . . . Recall Extermination 1 | . . . . . . . . . . . . . . . . . . . . . . . 1 . . Registered Prototypes 2 | . 1 . . . . . . . . . . . . . . . . . . . 1 . . . . Zone Layout 9 | . 1 . . . . . . . . . . . . . 2 . . . . . 3 1 1 . 1 Fabricator Hacks 1 | . . . . . . . . . . . . . . . . 1 . . . . . . . . . Build 1 | . . . . . . . . . . . . . . . . 1 . . . . . . . . . Repair Station Hacks 15 | . . . . . . . . . . . 3 . . . . 6 . . . . . . . . 6 Scan Component 8 | . . . . . . . . . . . 2 . . . . 3 . . . . . . . . 3 Repair 7 | . . . . . . . . . . . 1 . . . . 3 . . . . . . . . 3 Recycling Unit Hacks 4 | . 2 . . . . . . . . . . . . . . . . . . . . . 1 . 1 Report Inventory 1 | . 1 . . . . . . . . . . . . . . . . . . . . . . . . Retrieve Components 3 | . 1 . . . . . . . . . . . . . . . . . . . . . 1 . 1 Scanalyzer 14 | . . . . . 8 . . . . . 1 . . . . . . . . . . . . . 5 Insert Component 7 | . . . . . 4 . . . . . 1 . . . . . . . . . . . . . 2 Analyze 7 | . . . . . 4 . . . . . . . . . . . . . . . . . . . 3 Garrison Access Hacks 3 | . . . . . 1 . . . . . . . . . 1 1 . . . . . . . . . Seal Access 3 | . . . . . 1 . . . . . . . . . 1 1 . . . . . . . . . Unauthorized Hacks 20 | . 5 . . . . . . . . . 2 . . . 6 . . . . . 3 1 2 . 1 Terminals 20 | . 5 . . . . . . . . . 2 . . . 6 . . . . . 3 1 2 . 1 Track 3 | . 1 . . . . . . . . . . . . . 2 . . . . . . . . . . Assimilate 5 | . 1 . . . . . . . . . 1 . . . 1 . . . . . 1 . 1 . . Botnet 10 | . 2 . . . . . . . . . 1 . . . 2 . . . . . 2 1 1 . 1 Operators 2 | . 1 . . . . . . . . . . . . . 1 . . . . . . . . . . Fabricators . | . . . . . . . . . . . . . . . . . . . . . . . . . . Repair Stations . | . . . . . . . . . . . . . . . . . . . . . . . . . . Recycling Units . | . . . . . . . . . . . . . . . . . . . . . . . . . . Scanalyzers . | . . . . . . . . . . . . . . . . . . . . . . . . . . Garrison Access . | . . . . . . . . . . . . . . . . . . . . . . . . . . Data Cores Recovered . | . . . . . . . . . . . . . . . . . . . . . . . . . . Used . | . . . . . . . . . . . . . . . . . . . . . . . . . . Hacking Detections 43 | . 4 . . . 1 . . . . . 8 1 2 . 11 1 . . . . 6 2 3 . 4 Full Trace Events 1 | . . . . . . . . . . . . . . . . . . . . . . . . . 1 Feedback Events . | . . . . . . . . . . . . . . . . . . . . . . . . . . Feedback Blocked . | . . . . . . . . . . . . . . . . . . . . . . . . . . Robot Schematics Acquired . | . . . . . . . . . . . . . . . . . . . . . . . . . . Robots Built . | . . . . . . . . . . . . . . . . . . . . . . . . . . Matter . | . . . . . . . . . . . . . . . . . . . . . . . . . . Time . | . . . . . . . . . . . . . . . . . . . . . . . . . . Total Robot Build Rating . | . . . . . . . . . . . . . . . . . . . . . . . . . . Part Schematics Acquired 9 | . . . . . 3 . . . . . . . . . . . . . 4 . . . . . 2 Parts Built 2 | . . . . . . . . . . . . . . . . 2 . . . . . . . . . Matter 278 | . . . . . . . . . . . . . . . . 278 . . . . . . . . . Time 139 | . . . . . . . . . . . . . . . . 139 . . . . . . . . . Total Part Build Rating 18 | . . . . . . . . . . . . . . . . 18 . . . . . . . . . Parts Repaired 7 | . . . . . . . . . . . 1 . . . . 3 . . . . . . . . 3 Time 341 | . . . . . . . . . . . 19 . . . . 262 . . . . . . . . 60 Parts Recycled . | . . . . . . . . . . . . . . . . . . . . . . . . . . Recycled Matter . | . . . . . . . . . . . . . . . . . . . . . . . . . . Retrieved Matter . | . . . . . . . . . . . . . . . . . . . . . . . . . . Retrieved Components 9 | . 8 . . . . . . . . . . . . . . . . . . . . . 1 . . Parts Scanalyzed 6 | . . . . . 3 . . . . . 1 . . . . . . . . . . . . . 2 Part Schematics Acquired 5 | . . . . . 3 . . . . . . . . . . . . . . . . . . . 2 Parts Damaged . | . . . . . . . . . . . . . . . . . . . . . . . . . . Bothacking | -11 -10 -10 -10 -9 -8 -7 -7 -7 -7 -6 -6 -6 -6 -6 -6 -5 -5 -5 -5 -4 -4 -3 -3 -3 -2 ------------ Run | Scr Mat Min Exi Min Mat Fac Low Low Zio Pro Fac Ext Cet Arc Hub Fac Upp Upp Zhi Pro Fac Res Arm Lab Res Used RIF Installer . | . . . . . . . . . . . . . . . . . . . . . . . . . . Robots Hacked . | . . . . . . . . . . . . . . . . . . . . . . . . . . Non-combat . | . . . . . . . . . . . . . . . . . . . . . . . . . . Combat . | . . . . . . . . . . . . . . . . . . . . . . . . . . Robot Hacks Applied . | . . . . . . . . . . . . . . . . . . . . . . . . . . Relay Couplers Released 3 | . . . . . . . . . . . . . . . . . . . . . . . . . 3 Programmers 3 | . . . . . . . . . . . . . . . . . . . . . . . . . 3 Robots Rewired 2 | . . . . . . . . . . 2 . . . . . . . . . . . . . . . Allies Hacked 1 | . . . . . . . . . . . . . 1 . . . . . . . . . . . . Hacks Repelled . | . . . . . . . . . . . . . . . . . . . . . . . . . . Allies | -11 -10 -10 -10 -9 -8 -7 -7 -7 -7 -6 -6 -6 -6 -6 -6 -5 -5 -5 -5 -4 -4 -3 -3 -3 -2 -------- Run | Scr Mat Min Exi Min Mat Fac Low Low Zio Pro Fac Ext Cet Arc Hub Fac Upp Upp Zhi Pro Fac Res Arm Lab Res Total Allies 20 | . . . . . . . . 2 . 2 1 1 . . 1 . . . . . . . 1 . 12 Largest Group 6 | . . . . . . . . 2 . 2 3 2 2 2 1 . . . . . . . 1 . 6 Highest-Rated Group 88 | . . . . . . . . 45 . 61 71 52 52 52 32 . . . . . . . 10 . 88 Highest-Rated Ally 32 | . . . . . . . . 25 . 32 32 32 32 32 32 . . . . . . . 10 . 15 Total Orders 3 | . . . . . . . . . . 1 . 1 1 . . . . . . . . . . . . RETURN 3 | . . . . . . . . . . 1 . 1 1 . . . . . . . . . . . . Ally Attacks 457 | . . . . . . . . 2 . 78 7 135 162 21 2 . . . . . . . . . 50 Total Damage 10369 | . . . . . . . . 78 . 1592 163 3330 3648 677 69 . . . . . . . . . 812 Kills 66 | . . . . . . . . . . 14 1 22 25 1 1 . . . . . . . . . 2 Allies Corrupted . | . . . . . . . . . . . . . . . . . . . . . . . . . . Allies Melted . | . . . . . . . . . . . . . . . . . . . . . . . . . . Intel | -11 -10 -10 -10 -9 -8 -7 -7 -7 -7 -6 -6 -6 -6 -6 -6 -5 -5 -5 -5 -4 -4 -3 -3 -3 -2 ------- Run | Scr Mat Min Exi Min Mat Fac Low Low Zio Pro Fac Ext Cet Arc Hub Fac Upp Upp Zhi Pro Fac Res Arm Lab Res Robot Analysis Total 5 | . . . . . . . . . . . . . . . . . . . 4 . . . . . 1 Derelict Logs Recovered 12 | . . . . 2 . . . 1 2 . . . . . . . 2 2 . 3 . . . . . Drone Launches 78 | . . . . . . . . . . 30 . 27 18 3 . . . . . . . . . . . Drone Recoveries 48 | . . . . . . . . . . 27 . 18 3 . . . . . . . . . . . . Decoded 0b10 Intel 68 | . . . . . . . . . . . . . . . . . . . . . 19 9 8 . 32 Traps 32 | . . . . . . . . . . . . . . . . . . . . . 15 . . . 17 Emergency Access 34 | . . . . . . . . . . . . . . . . . . . . . 4 8 8 . 14 Garrisons 2 | . . . . . . . . . . . . . . . . . . . . . . 1 . . 1 Exploration | -11 -10 -10 -10 -9 -8 -7 -7 -7 -7 -6 -6 -6 -6 -6 -6 -5 -5 -5 -5 -4 -4 -3 -3 -3 -2 ------------- Run | Scr Mat Min Exi Min Mat Fac Low Low Zio Pro Fac Ext Cet Arc Hub Fac Upp Upp Zhi Pro Fac Res Arm Lab Res Turns Passed 16658 | 77 255 225 364 434 473 106 394 610 263 844 811 947 675 150 1700 674 1289 799 337 763 1007 859 449 285 1868 Spaces Moved 8532 | 49 204 160 320 305 305 66 271 436 211 383 368 362 269 66 721 291 626 390 167 350 492 397 252 141 930 Core 235 | 2 . . . . . . . . . 4 . . . . . . . . . . . . . . 229 Treads 5873 | . . . . . . . . . . 280 368 362 269 66 721 291 626 390 167 350 492 397 252 141 701 Legs . | . . . . . . . . . . . . . . . . . . . . . . . . . . Wheels 2424 | 47 204 160 320 305 305 66 271 436 211 99 . . . . . . . . . . . . . . . Hover . | . . . . . . . . . . . . . . . . . . . . . . . . . . Flight . | . . . . . . . . . . . . . . . . . . . . . . . . . . Fastest Speed 50 | 50 100 110 110 110 130 130 130 120 120 120 200 200 200 180 160 180 180 180 180 180 160 145 145 145 50 Average Speed 161 | 97 108 110 112 119 130 130 130 131 120 200 200 228 223 184 179 180 180 180 180 180 169 180 145 146 128 Slowest Speed 2150 | 100 110 110 120 120 130 130 130 160 120 2150 200 240 240 200 180 180 180 180 260 180 200 200 145 165 185 Overloaded Moves . | . . . . . . . . . . . . . . . . . . . . . . . . . . Propulsion Burnouts . | . . . . . . . . . . . . . . . . . . . . . . . . . . Robots Hopped . | . . . . . . . . . . . . . . . . . . . . . . . . . . Cave-ins Triggered . | . . . . . . . . . . . . . . . . . . . . . . . . . . Teleports 2 | . . . . . . . . . . . . . . . . . . . . . . . 1 . 1 Exploration Rate (%) 42 | 3 37 32 73 31 29 2 41 61 13 65 13 50 82 81 60 7 74 65 62 53 14 13 19 99 22 Regions Visited 25 Branch Regions 17 Pre-discovered Areas 10 | . . . 1 1 . . . 1 . . . . . . . . 1 1 3 2 . . . . . Known Exits Taken 5 | . . . . . . 1 . . . . 1 . . . . . 1 . . . 1 1 . . . Unknown Exits Taken 20 | 1 1 1 1 1 1 . 1 1 1 1 . 1 1 1 1 1 . 1 1 1 . . 1 1 . Scrap Searched 15 | . . . . 1 . . 1 3 1 1 . . . . . . 3 3 . 2 . . . . . Spaces Dug 16 | . . . . . . . . . . . 2 . . . 1 . . . . . 6 1 4 . 2 Terrain Destroyed 854 | 2 2 4 . . 3 . 34 . . . 5 6 15 3 510 1 17 9 . 19 11 6 6 . 201 Melee 15 | . . . . . . . . . . . 2 . . . . . . . . . 6 1 4 . 2 Projectile 120 | . . . . . 3 . . . . . 3 4 1 3 43 1 14 4 . 7 5 5 2 . 25 AOE 719 | 2 2 4 . . . . 34 . . . . 2 14 . 467 . 3 5 . 12 . . . . 174 Terrain Rammed . | . . . . . . . . . . . . . . . . . . . . . . . . . . Walls Destroyed . | . . . . . . . . . . . . . . . . . . . . . . . . . . Machines Disabled . | . . . . . . . . . . . . . . . . . . . . . . . . . . Actions | -11 -10 -10 -10 -9 -8 -7 -7 -7 -7 -6 -6 -6 -6 -6 -6 -5 -5 -5 -5 -4 -4 -3 -3 -3 -2 --------- Run | Scr Mat Min Exi Min Mat Fac Low Low Zio Pro Fac Ext Cet Arc Hub Fac Upp Upp Zhi Pro Fac Res Arm Lab Res Total 10224 | 65 221 189 326 364 349 81 295 456 223 446 429 441 337 83 894 432 692 438 193 416 584 476 304 187 1303 Wait 344 | 1 . 13 . 4 13 4 2 1 . 8 24 31 . . 18 120 . . . 10 29 . 10 5 51 Move 8507 | 48 203 159 319 304 304 65 270 435 210 382 367 361 268 65 720 290 625 389 166 349 491 396 251 140 930 Hop . | . . . . . . . . . . . . . . . . . . . . . . . . . . Pick Up 199 | 5 3 5 1 16 9 3 3 4 5 15 8 10 34 4 10 9 4 7 3 7 4 7 9 5 9 Fast Attach 126 | 6 1 . 1 2 2 . . 2 . 8 2 . 4 . 5 3 6 4 6 1 3 17 . 5 48 Attach 96 | . . . 1 . 3 2 1 1 . 2 4 1 5 6 15 6 3 2 1 6 6 3 1 4 23 Detach 21 | . . . . . 1 . . . . 2 . . 3 . 2 . . 1 1 . . 2 . 1 8 Swap 81 | . 3 1 1 3 . 1 6 . 2 2 7 2 . . 7 . 2 2 4 5 7 4 8 3 11 Drop 162 | . 3 1 3 9 1 2 2 5 6 7 7 12 16 1 4 . 3 7 6 2 3 15 8 5 34 Fire 609 | 5 8 10 . 6 16 3 11 8 . 9 6 24 7 7 113 4 48 26 4 36 34 29 13 5 177 Melee 40 | . . . . . . . . . . . 2 . . . . . . . . . 7 3 4 14 10 Ram 2 | . . . . . . . . . . . . . . . . . . . . . . . . . 2 Kick . | . . . . . . . . . . . . . . . . . . . . . . . . . . Crush . | . . . . . . . . . . . . . . . . . . . . . . . . . . Escape Stasis . | . . . . . . . . . . . . . . . . . . . . . . . . . . Rewire 14 | . . . . . . . . . . 11 . . . . . . 1 . 2 . . . . . . Trap 23 | . . . . 20 . 1 . . . . 2 . . . . . . . . . . . . . . Miscellaneous . | . . . . . . . . . . . . . . . . . . . . . . . . . . Route ------- -11/Scrapyard -10/Materials -10/Mines (discovered 2 exits: [*Mat] / *Exi) -10/Exiles (discovered 2 exits: *Min x2) -9/Mines -8/Materials -7/Factory (discovered 2 exits: *Low x2) -7/Lower Caves -7/Lower Caves -7/Zion -6/Proximity Caves -6/Factory (discovered 2 exits: Fac / *Ext) -6/Extension (discovered 2 exits: *Fac / *Cet) -6/Cetus (discovered 2 exits: *Fac / *Arc) -6/Archives (discovered 2 exits: *Hub x2) -6/Hub_04(d) (discovered 2 exits: *Fac x2) -5/Factory -5/Upper Caves -5/Upper Caves (discovered 2 exits: *Fac / *Zhi) -5/Zhirov -4/Proximity Caves -4/Factory (discovered 4 exits: *Res x4) -3/Research (discovered 3 exits: *Arm / Tes x2) -3/Armory -3/Lab -2/Research History --------- Turn | Location | Event 2 | -11/Scrapyard | Met Revision 17 10 | -11/Scrapyard | Discovered new exit (range 15) 78 | -11/Scrapyard | Entered Materials 300 | -10/Materials | Discovered new exit (range 7) 302 | -10/Materials | Build established: Mutant 333 | -10/Materials | Entered Mines 367 | -10/Mines | Received a Rocket Launcher from a helpful Derelict 371 | -10/Mines | Found a hidden stash of uninstalled traps 502 | -10/Mines | Discovered new exit (range 12) 554 | -10/Mines | Deemed a non-threat by the Exiles lab entrance 554 | -10/Mines | Discovered new exit (range 5) 558 | -10/Mines | Entered Exiles 573 | -10/Exiles | Discovered new exit (range 15) 588 | -10/Exiles | Met 8R-AWN 605 | -10/Exiles | Met EX-HEX 634 | -10/Exiles | Met EX-BIN 648 | -10/Exiles | Aligned with FarCom system 649 | -10/Exiles | Given EX-Vault access code 694 | -10/Exiles | Opened EX-Vault 709 | -10/Exiles | Found Prototype Device 735 | -10/Exiles | Warned to stay clear of 0b10 Research branches 766 | -10/Exiles | Met EX-DEC 771 | -10/Exiles | Learned location of Zion (-7) 912 | -10/Exiles | Discovered new exit (range 10) 922 | -10/Exiles | Left Exiles lab with Army-in-a-Box 922 | -10/Exiles | Entered Mines 968 | -9/Mines | Met a Derelict who couldn't figure out how to use a Trap Extractor 1048 | -9/Mines | Discovered new exit (range 5) 1125 | -9/Mines | Build established: Hauler-Mutant 1356 | -9/Mines | Entered Materials 1356 | -8/Materials | Evolved 4 slots: Utility x4 1650 | -8/Materials | Identified Army-in-a-Box 1659 | -8/Materials | Build established: Trapper-Skirmisher 1781 | -8/Materials | Discovered new exit (range 16) 1829 | -8/Materials | Entered Factory 1829 | -7/Factory | Evolved 2 slots: Utility x2 1830 | -7/Factory | Identified exit to Lower Caves 1842 | -7/Factory | Discovered exit to Lower Caves (range 15) 1935 | -7/Factory | Entered Lower Caves 2160 | -7/Lower Caves | Attacked by a delusional Derelict stockpiling parts 2238 | -7/Lower Caves | Encountered a Warlord checkpoint 2247 | -7/Lower Caves | Build established: Hauler-Mutant 2288 | -7/Lower Caves | Discovered new exit (range 12) 2329 | -7/Lower Caves | Entered another Lower Caves area 2382 | -7/Lower Caves | A Commander dispatched an escort 2388 | -7/Lower Caves | Learned 8 Factory zone layouts 2396 | -7/Lower Caves | Learned 8 Factory zone layouts 2396 | -7/Lower Caves | Learned 8 Research zone layouts 2396 | -7/Lower Caves | Learned Research trap positions 2396 | -7/Lower Caves | Learned Armory trap positions 2396 | -7/Lower Caves | Learned Factory stockpile data 2396 | -7/Lower Caves | Learned Research terminal intel 2715 | -7/Lower Caves | Attracted the attention of an 0b10 checkpoint 2883 | -7/Lower Caves | Discovered new exit (range 16) 2939 | -7/Lower Caves | Entered Zion 3026 | -7/Zion | Learned Factory emergency access door positions 3067 | -7/Zion | Discovered new exit (range 15) 3079 | -7/Zion | Given the Hacking Drone Bay 3080 | -7/Zion | Found Prototype Device 3202 | -7/Zion | Entered Proximity Caves 3334 | -6/Proximity Caves | Attracted the attention of an 0b10 outpost 3373 | -6/Proximity Caves | Lost 4 parts (2n2w) 4002 | -6/Proximity Caves | Discovered new exit (range 5) 4046 | -6/Proximity Caves | Entered Factory 4046 | -6/Factory | Accompanied by 2 allies 4046 | -6/Factory | Evolved 2 slots: Utility x2 4047 | -6/Factory | Identified exit to Extension 4073 | -6/Factory | Identified Hacking Drone Bay 4136 | -6/Factory | Repaired Imp. Utility Shielding 4604 | -6/Factory | Discovered new exit (range 12) 4643 | -6/Factory | Build established: Scavenger-Skirmisher 4857 | -6/Factory | Entered Extension 4857 | -6/Extension | Accompanied by 1 ally 4871 | -6/Extension | Disrupted transfer network 5169 | -6/Extension | Allies destroyed B-75 Beast 5185 | -6/Extension | Allies destroyed B-75 Beast 5404 | -6/Extension | Build established: Hauler-Mutant 5478 | -6/Extension | Discovered new exit (range 17) 5478 | -6/Extension | Discovered new exit (range 17) 5648 | -6/Extension | Rescued a captive Derelict 5804 | -6/Extension | Entered Cetus 5804 | -6/Cetus | Accompanied by 2 allies 5829 | -6/Cetus | Spotted Cetus Guard 5829 | -6/Cetus | Spotted Cetus Guard 5830 | -6/Cetus | Spotted Cetus Guard 5835 | -6/Cetus | Spotted Cetus Guard 5839 | -6/Cetus | Allies destroyed Cetus Guard 5841 | -6/Cetus | Allies destroyed Cetus Guard 5841 | -6/Cetus | Allies destroyed Cetus Guard 6296 | -6/Cetus | Discovered new exit (range 16) 6334 | -6/Cetus | Spotted Cetus Guard 6334 | -6/Cetus | Spotted Cetus Guard 6337 | -6/Cetus | Allies destroyed Cetus Guard 6337 | -6/Cetus | Spotted Cetus Guard 6338 | -6/Cetus | Spotted Cetus Guard 6343 | -6/Cetus | Allies destroyed Cetus Guard 6348 | -6/Cetus | Discovered new exit (range 20) 6351 | -6/Cetus | Destroyed Cetus Guard 6351 | -6/Cetus | Destroyed Cetus Guard 6373 | -6/Cetus | Met Revision 17 6479 | -6/Cetus | Entered Archives 6479 | -6/Archives | Accompanied by 2 allies 6542 | -6/Archives | Unable to access archive contents 6548 | -6/Archives | Discovered new exit (range 15) 6563 | -6/Archives | Unable to access archive contents 6565 | -6/Archives | Discovered new exit (range 16) 6591 | -6/Archives | Unable to access archive contents 6629 | -6/Archives | Entered Hub_04(d) 6629 | -6/Hub_04(d) | Accompanied by 1 ally 6832 | -6/Hub_04(d) | Build established: Scavenger-Skirmisher 6895 | -6/Hub_04(d) | Discovered new exit (range 18) 7098 | -6/Hub_04(d) | Garrison activated, responded to threat 7390 | -6/Hub_04(d) | Network Hub disabled 7445 | -6/Hub_04(d) | Found Prototype Launcher 7445 | -6/Hub_04(d) | Identified Scatter Rocket Array 7517 | -6/Hub_04(d) | Spotted Lightning 7521 | -6/Hub_04(d) | Spotted Lightning 7522 | -6/Hub_04(d) | Spotted Lightning 7548 | -6/Hub_04(d) | System corruption reached 10% 7556 | -6/Hub_04(d) | Destroyed Lightning 7583 | -6/Hub_04(d) | Destroyed Lightning 7592 | -6/Hub_04(d) | Destroyed Lightning 7606 | -6/Hub_04(d) | Lost 6 parts (1n5u) 7686 | -6/Hub_04(d) | Spotted Lightning 7827 | -6/Hub_04(d) | Build established: Hauler-Mutant 7828 | -6/Hub_04(d) | Network Hub disabled 7932 | -6/Hub_04(d) | Discovered new exit (range 13) 8129 | -6/Hub_04(d) | Build established: Scavenger-Mutant 8213 | -6/Hub_04(d) | Spotted Lightning 8228 | -6/Hub_04(d) | Spotted Lightning 8235 | -6/Hub_04(d) | Spotted Lightning 8252 | -6/Hub_04(d) | Core integrity fell below 50% 8277 | -6/Hub_04(d) | Lost 4 parts (1n2u1w) 8317 | -6/Hub_04(d) | Core integrity fell below 20% 8317 | -6/Hub_04(d) | System corruption reached 30% 8329 | -6/Hub_04(d) | Entered Factory 8329 | -5/Factory | Evolved 2 slots: Power x1, Utility x1 8350 | -5/Factory | Lost 6 parts (1p1n3u1w) 8509 | -5/Factory | Repaired Scatter Rocket Array? 8658 | -5/Factory | Fabricated Stasis Projector? 8691 | -5/Factory | Repaired Centrium Heavy Treads 8726 | -5/Factory | Local fabrication network quarantined 8767 | -5/Factory | Repaired Quantum Reactor? 8959 | -5/Factory | Discovered new exit (range 13) 9003 | -5/Factory | Entered Upper Caves 9263 | -5/Upper Caves | Learned location of Armory (-3) 9789 | -5/Upper Caves | Spotted B-75 Beast 9809 | -5/Upper Caves | Destroyed B-75 Beast 9827 | -5/Upper Caves | Lost 4 parts (4u) 9910 | -5/Upper Caves | Identified exit to Upper Caves 10137 | -5/Upper Caves | Encountered a Warlord checkpoint 10292 | -5/Upper Caves | Entered another Upper Caves area 10348 | -5/Upper Caves | Discovered new exit (range 6) 11060 | -5/Upper Caves | Discovered new exit (range 16) 11091 | -5/Upper Caves | Entered Zhirov 11091 | -5/Zhirov | Discovered new exit (range 3) 11124 | -5/Zhirov | Met Zhirov 11156 | -5/Zhirov | Learned location of Quarantine (-2) 11156 | -5/Zhirov | Learned location of Testing (-3) 11156 | -5/Zhirov | Learned location of Command (-1) 11190 | -5/Zhirov | Zhirov requested help retrieving the SGEMP Prototype 11223 | -5/Zhirov | Found Alien Artifact 11223 | -5/Zhirov | Identified Integrated Dissipator 11223 | -5/Zhirov | Installed Integrated Dissipator, increased core heat dissipation (+20) 11321 | -5/Zhirov | Build established: Derelict-Mutant 11360 | -5/Zhirov | Found Alien Artifact 11428 | -5/Zhirov | Entered Proximity Caves 11543 | -4/Proximity Caves | Attracted the attention of an 0b10 checkpoint 11810 | -4/Proximity Caves | Received a Behemoth hack from an annoying Tinkerer 11962 | -4/Proximity Caves | Lost 7 parts (3p4w) 12000 | -4/Proximity Caves | Learned location of 1 exit from Research 12168 | -4/Proximity Caves | Discovered new exit (range 13) 12191 | -4/Proximity Caves | Entered Factory 12191 | -4/Factory | Evolved 2 slots: Propulsion x2 12561 | -4/Factory | Identified exit to Research 12771 | -4/Factory | Build established: Hauler-Mutant 13086 | -4/Factory | Lost 3 parts (2u1w) 13198 | -4/Factory | Entered Research 13198 | -3/Research | Evolved 2 slots: Utility x2 13199 | -3/Research | Identified exit to Armory 13200 | -3/Research | Identified exit to Testing 13202 | -3/Research | Loaded intel: 63 trap records 13203 | -3/Research | Loaded intel: 20 terminal locations 13398 | -3/Research | Revision forces began assault on 0b10 13464 | -3/Research | Met up with Revision 17++ 13494 | -3/Research | Build established: Scavenger-Mutant 13840 | -3/Research | Found Prototype Slashing Weapon 13840 | -3/Research | Identified Centrium Greatsword 13859 | -3/Research | Found Exp. System Shield 13898 | -3/Research | Research terminal network offline 14057 | -3/Research | Entered Armory 14058 | -3/Armory | Loaded intel: 39 trap records 14138 | -3/Armory | Build established: Hacker-Mutant 14474 | -3/Armory | Build established: Scavenger-Mutant 14505 | -3/Armory | Identified Transdimensional Reconstructor 14505 | -3/Armory | Warped through subspace to slip node 14505 | -3/Armory | Discovered new exit (range 1) 14506 | -3/Armory | Entered Lab 14508 | -3/Lab | Discovered new exit (range 9) 14525 | -3/Lab | Unable to decrypt terminal 14525 | -3/Lab | Opened the door to a hidden lab 14526 | -3/Lab | Gained access to the hidden lab's interior 14531 | -3/Lab | Unable to decrypt terminal 14534 | -3/Lab | Detected by scanners 14539 | -3/Lab | Found Alien Artifact 14540 | -3/Lab | Identified Core Reset Matrix 14540 | -3/Lab | Used Core Reset Matrix 14544 | -3/Lab | Confronted by A5 14544 | -3/Lab | Sensed 3 artifacts in vicinity 14592 | -3/Lab | Destroyed A5 14622 | -3/Lab | Found Integrated Reactor 14622 | -3/Lab | Installed Integrated Reactor, increased core energy generation (+10) 14633 | -3/Lab | Found Core Regenerator 14633 | -3/Lab | Used Core Regenerator, restored core integrity (+325) 14649 | -3/Lab | Found Transdimensional Reconstructor 14682 | -3/Lab | Found Prototype Protection 14682 | -3/Lab | Identified Exp. Powered Armor 14687 | -3/Lab | Found Prototype Hackware 14687 | -3/Lab | Identified Deep Network Scanner 14695 | -3/Lab | Found Prototype Energy Cannon 14699 | -3/Lab | Found Prototype Energy Gun 14714 | -3/Lab | Unable to decrypt terminal 14734 | -3/Lab | Found Prototype Special Weapon 14734 | -3/Lab | Identified Gui. Remote Datajack 14767 | -3/Lab | Discovered new exit (range 7) 14791 | -3/Lab | Entered Research 14791 | -2/Research | Evolved 2 slots: Utility x2 14930 | -2/Research | Repaired Biometal Medium Treads 14947 | -2/Research | Repaired Energy Well 14971 | -2/Research | Repaired Biometal Medium Treads 15082 | -2/Research | Found Unknown Device 15082 | -2/Research | Identified Launcher Loader 15144 | -2/Research | Build established: Hacker-Skirmisher 15290 | -2/Research | Intercept squad dispatched 15311 | -2/Research | Spotted Tracker 15311 | -2/Research | Spotted Tracker 15327 | -2/Research | Destroyed Tracker 15342 | -2/Research | Identified Warp Cannon 15346 | -2/Research | Spotted Combat Programmer 15354 | -2/Research | Spotted Combat Programmer 15370 | -2/Research | Destroyed Combat Programmer 15385 | -2/Research | Destroyed Combat Programmer 15413 | -2/Research | Lost 7 parts (2n3u2w) 15436 | -2/Research | System corruption reached 10% 15880 | -2/Research | Lost 4 parts (2u2w) 15931 | -2/Research | Lost 3 parts (1p1n1w) 16100 | -2/Research | Intercept squad dispatched 16108 | -2/Research | Spotted Tracker 16109 | -2/Research | Spotted Tracker 16110 | -2/Research | Spotted Tracker 16138 | -2/Research | Destroyed Tracker 16138 | -2/Research | Destroyed Tracker 16145 | -2/Research | Spotted Combat Programmer 16151 | -2/Research | Destroyed Tracker 16163 | -2/Research | Spotted Combat Programmer 16169 | -2/Research | Spotted Combat Programmer 16169 | -2/Research | Destroyed Combat Programmer 16170 | -2/Research | Core integrity fell below 50% 16171 | -2/Research | Warped through subspace 16178 | -2/Research | Identified Hyp. EM Gauss Rifle 16200 | -2/Research | Lost 13 parts (2p2n5u4w) 16209 | -2/Research | Build established: Hacker-Mutant 16308 | -2/Research | Destroyed Combat Programmer 16327 | -2/Research | First assault squad dispatched 16351 | -2/Research | System corruption reached 30% 16443 | -2/Research | Emitted hypermatrix ping 16448 | -2/Research | Assembled emerged from beneath the floor 16538 | -2/Research | Core integrity fell below 20% 16588 | -2/Research | Lost 12 parts (2p2n5u3w) 16631 | -2/Research | Assembled emerged from beneath the floor 16643 | -2/Research | Intercept squad dispatched 16654 | -2/Research | Spotted Tracker 16655 | -2/Research | Spotted Tracker 16655 | -2/Research | Spotted Tracker 16658 | -2/Research | Spotted Tracker 16659 | -2/Research | Destroyed by Tracker with Linked Autogun Last Messages --------------- 16590_ ALERT: Hostiles spotted, dispatching reinforcements to Terminal R007. 16611_ Acquired Unknown Wheel. 16611_ Identified Centrium Wheel. 16612_ System corrupted: Component data lost. 16614_ Acquired Unknown Device. 16614_ Identified Adv. Component Analysis Suite. 16618_ Dropped Adv. Component Analysis Suite. 16629_ HV9WJII 16656_ Terminal disabled. 16657_ P-80 Master resets A-15 Conveyor, system corruption cleaned. 16658_ Adv. Heat Sink destroyed. Tracker: "THREAT CONFIRMED. DEPLOY COMBAT PROGRAMMER." Map ----- +----------------------------------------------------+ | ?????????????????????????????????????????????????? | | ?????????????????????????????????????????????????? | | ?????????????????????????????????????????????????? | | ?????????????????????????????????????????????????? | | ?????????????????????????????????????????????????? | | ?????????????????????????????????????????????????? | | ?????????????????????????????????????????????????? | | ?????????????????????????????????????????????????? | | ?????????????????????????????????????????????????? | | ?????????????????????????????????????# ??? | | ?????????????????????????????????????# ####??? | | ?????????????????????????????????????# #?????? | | ?????????????????????????????????????# #?????? | | ?????????????????????????????????????# #?????? | | #######??????????????????????????????# #?????? | | # ########???????????????????????# #?????? | | # # #???????????????????????# #?????? | | # # #???????????????????????# #?????? | | # # #???????????????????????# #?????? | | # # #???????????????????????# h #?????? | | # # #?????????????#########?# #?????? | | ? # #?????????????# #?#w #?????? | | ###+######+################# #?# h #?????? | | #?# #?????? | | ^ m s #?# #?????? | | ^ p p @ A #?# #?????? | | ## ##############+##########s #?# #?????? | | ?# #???????????# #??# #?# #?????? | | ?# #???????????# !#??### ###?# #?????? | | ?# #???????????# #???## ##??# #?????? | | ?# #???????????# """ #??### ###?# #?????? | | ?# #???????????# """ #??# # # #?# ####??? | | ?# #???????????# """ #??# # !!##### ## ??? | | ## #???????????# #??### # ## # ??? | | #???????????# #???## #### # ??? | | ##+######??????# #??# # =^^ # ??? | | #??????#####+####??### =^= + ??? | | #??????????# #??????## %[%=[ # ??? | | ""#??????????# #????#######/### # ??? | | ""#??????#####g###### | **%%[# # ??? | | T"#??????+ g g + =!= #?? =|###????? | | ""#??????# ##g###### [% #?? !%#??????? | | ""#??????# ## g ##= ! [* #?? =#??????? | | #??????+ ## ## #?# #??????? | | #??????# ## ## #?# #??????? | | ###/#########+## ## ## #?# #??????? | | # ## #?# #??????? | | ##+#############+### #??????? | | + #???# =% #! #??????? | | ###+############ # #???# ![=#!| #??????? | +----------------------------------------------------+ Best States ------------- Heat Dissipation 166 Coolant Potential 120 Energy Generation 53 Energy Capacity 1090 Matter Stores 450 Matter Capacity 900 Sight Range 16 Terrain Scan Range 24 Terrain Scan Density 135 Cloak Strength 4 Corruption Prevention 20 Armor Coverage 400 Resistance: KI 20 Utility Shielding 90 Point Defense Rating 80 Phase Shifting 10 Evasion (%) 50 Targeting Accuracy 14 Target Analysis 8 Recoil Reduction 4 Particle Charging 30 Kinecelleration 40 Salvage Targeting 1 Offensive Hacking 39 Defensive Hacking 26 Item Schematics ----------------- Lgt. Particle Reactor | -2/Research | Scanalyzed Adv. Heat Sink | -2/Research | Scanalyzed Robot Schematics ------------------ None Fabricated ------------ Stasis Projector | x2 | -5/Factory | Preloaded Alien Tech Used ----------------- Integrated Dissipator Transdimensional Reconstructor Core Reset Matrix Integrated Reactor Core Regenerator Achievements -------------- Revolutionary Research Challenges ------------ None Game ------ Seed FlakMomentumStorage Manual? 0 Play Time 04:31:40 Cumulative 188.0 hours Start 2021.05.07 @ 15:35:34 End 2021.05.09 @ 18:36:35 Sessions 7 Manual Loads 0 Difficulty Rogue Special Mode None Game No. 90 Rogue 90 Adventurer 0 Explorer 0 Win Type - Total 5 Types 4/0/1/0/0/0/0/0/0 Lore% 70 Gallery% 77 Achievement% 59 Wizard Run 0 Options --------- ASCII 0 Keyboard 1 Movement Numpad Keybinds 0 Fullscreen 2 Font 18/SmallcapsGlow Map View 76x50 Tactical HUD 1 Map Filters NONE Filters NONE Steam 1 RUN: aab59963-3b30-4963-b109-895845f47366